{"text_format":"1","workbook":"xlsx","n_sheets":4,"sheets":["Date intiale","Cost actual","Cost nou","Tarif"],"not_rendered":{"charts":0,"images":0,"macros":1,"external_links":0,"defined_names":1,"comments":2,"pivot_tables":0},"unopened":[],"bounds":{"document_bytes":16777216,"sheet_cells":100000,"rows_first":2000,"rows_last":500,"rows_between":2000,"halvings":0,"cell_chars":16384,"cell_head_chars":4096},"cells_cut":0,"cells_raw":0,"read":"whole","date_system":"1900"}

{"sheet":"Date intiale","index":0,"n_rows":25,"n_cols":6,"rows_kept":25,"cut":false,"hidden":false,"merged":[[0,1,0,2],[0,0,1,0],[0,3,0,4],[18,1,18,2],[0,5,1,5]]}
["Activități administrative","Timp consumat, ore",null,"Schimbare:\"-\" reducere,\"+\" majorare",null,"Comentarii"]
[null,"actual","nou","ore","%"]
["Familiarizarea cu obligația informațională (identificarea cerințelor de eliberare a actului permisiv de export, clarificarea aspectelor informației/documentelor solicitate): aplică pentru prima dată pentru actul permisiv  ",3,3,{"$f":"C3-B3","v":0},{"$f":"D3/B3","v":0}]
["Familiarizarea cu obligația informațională (identificarea cerințelor de eliberare a actului permisiv de export, clarificarea aspectelor informației/documentelor solicitate): aplică repetat pentru actul permisiv ",0,0,{"$f":"C4-B4","v":0},{"$f":"D4/B4","v":{"$error":"#DIV/0!"}}]
["Completarea cererii de solicitare a actului permisiv de export",0.25,0.25,{"$f":"C5-B5","v":0},{"$f":"D5/B5","v":0}]
["Colectarea documentelor stipulate la alin. (3) al art. X, inclusiv copii de pe documente",1,1,{"$f":"C6-B6","v":0},{"$f":"D6/B6","v":0}]
["Prezentarea/ridicarea documentelor (un drum dus-întors pentru depunerea documentelor și altul pentru obținerea actului permisiv de export și timpul de așteptare în rând la subdiviziunea autorității publice “AP”)",2.5,2.5,{"$f":"C7-B7","v":0},0]
["Achitarea taxei de eliberare a actului permisiv de export (timpul pentru achitarea taxei de eliberare a actului permisiv de export)",0.5,0.5,{"$f":"C8-B8","v":0},0]
[null,null,null,{"$f":"C9-B9","v":0},{"$f":"D9/B9","v":{"$error":"#DIV/0!"}}]
[null,null,null,{"$f":"C10-B10","v":0},{"$f":"D10/B10","v":{"$error":"#DIV/0!"}}]
[null,null,null,0,{"$error":"#DIV/0!"}]
[null,null,null,0,{"$error":"#DIV/0!"}]
[null,null,null,0,{"$error":"#DIV/0!"}]
[null,null,null,0,{"$error":"#DIV/0!"}]
[null,null,null,0,{"$error":"#DIV/0!"}]
[null,null,null,0,{"$error":"#DIV/0!"}]
[null,null,null,{"$f":"C17-B17","v":0},{"$f":"D17/B17","v":{"$error":"#DIV/0!"}}]
[null,null,null,0,{"$error":"#DIV/0!"}]
["Date privind cantitatea","Cantitate, număr",null,"număr, p.p.","%"]
["Numărul de agenți economici",1000,1000,{"$f":"C20-B20","v":0},{"$f":"D20/B20","v":0}]
["Ponderea agenților economici care au aplicat pentru prima dată pentru actul permisiv, %",0.1,0.1,0,0]
["Frecvenţa",1,1,0,0]
[]
["Taxa de eliberare a actului permisiv, lei",100,100,{"$f":"C24-B24","v":0},{"$f":"D24/B24","v":0}]
["Timp de așteptare de la depunerea documentelor solicitate până la ridicarea actului permisiv, zile",5,5,{"$f":"C25-B25","v":0},{"$f":"D25/B25","v":0}]

{"sheet":"Cost actual","index":1,"n_rows":12,"n_cols":13,"rows_kept":12,"cut":false,"hidden":false,"merged":[[11,3,11,11],[2,0,8,0],[2,1,8,1],[2,2,8,2],[8,3,8,11],[10,3,10,11]]}
["Acte normative","Autorităţi implicate","Descrierea obligației informaționale","Grupuri țintă de agenți economici","Timp, ore","Tarif,  lei/oră","Preţ, lei","Achiziţii, lei","Preţ total, lei","Numărul de agenți economici","Frecvenţa","Cantitate, număr pe an","Costuri administrative totale anuale, mii lei"]
[1,2,3,4,5,6,"7=5*6",8,"9=7+8",10,11,"12=10*11","13=9*12/1000"]
["Legea privind reglementarea activităţii A (art.X)","Autoritatea publică AP","Obţinerea actului permisiv de export","aplică repetat pentru actul permisiv ",{"$f":"'Date intiale'!B4+'Date intiale'!B5+'Date intiale'!B6+'Date intiale'!B7+'Date intiale'!B8","v":4.25},{"$f":"Tarif!$B$8","v":64.5},{"$f":"E3*F3","v":274.125},0,{"$f":"G3+H3","v":274.125},{"$f":"'Date intiale'!$B$20-J4","v":900},{"$f":"'Date intiale'!$B$22","v":1},{"$f":"J3*K3","v":900},{"$f":"I3*L3/1000","v":246.71250000000001}]
[null,null,null,"aplică pentru prima dată pentru actul permisiv  ",{"$f":"'Date intiale'!B3+'Date intiale'!B5+'Date intiale'!B6+'Date intiale'!B7+'Date intiale'!B8","v":7.25},{"$f":"Tarif!$B$8","v":64.5},{"$f":"E4*F4","v":467.625},0,467.625,{"$f":"'Date intiale'!$B$20*'Date intiale'!$B$21","v":100},{"$f":"'Date intiale'!$B$22","v":1},100,{"$f":"I4*L4/1000","v":46.762500000000003}]
[null,null,null,null,null,{"$f":"Tarif!$B$8","v":64.5},{"$f":"E5*F5","v":0},null,0,null,null,0,0]
[null,null,null,null,null,{"$f":"Tarif!$B$8","v":64.5},0,null,0,null,null,0,0]
[null,null,null,null,null,{"$f":"Tarif!$B$8","v":64.5},0,null,0,null,null,0,0]
[null,null,null,null,null,{"$f":"Tarif!$B$8","v":64.5},0,null,0,null,null,0,0]
[null,null,null,"TOTAL actual",null,null,null,null,null,null,null,null,{"$f":"SUM(M3:M8)","v":293.47500000000002}]
[]
[null,null,null,"TOTAL taxă de eliberare a actului permisiv, actual, mii lei",null,null,null,null,null,null,null,null,{"$f":"'Date intiale'!$B$20*'Date intiale'!$B$24/1000","v":100}]
[null,null,null,"Timp de așteptare de la depunerea documentelor solicitate până la ridicarea actului permisiv, actual, mii zile",null,null,null,null,null,null,null,null,{"$f":"'Date intiale'!$B$20*'Date intiale'!$B$25/1000","v":5}]

{"sheet":"Cost nou","index":2,"n_rows":22,"n_cols":13,"rows_kept":22,"cut":false,"hidden":false,"merged":[[18,3,18,11],[19,3,19,11],[20,3,20,11],[21,3,21,11],[14,3,14,11],[13,3,13,11],[15,3,15,11],[16,3,16,11],[11,3,11,11],[10,3,10,11],[2,0,8,0],[2,1,8,1],[2,2,8,2],[8,3,8,11],[9,3,9,11]]}
["Acte normative","Autorităţi implicate","Descrierea obligației informaționale","Grupuri țintă de agenți economici","Timp, ore","Tarif,  lei/oră","Preţ, lei","Achiziţii, lei","Preţ total, lei","Numărul de agenți economici","Frecvenţa","Cantitate, număr pe an","Costuri administrative totale anuale, mii lei"]
[1,2,3,4,5,6,"7=5*6",8,"9=7+8",10,11,"12=10*11","13=9*12/1000"]
["Legea privind reglementarea activităţii A (art.X)","Autoritatea publică AP","Obţinerea actului permisiv de export","aplică repetat pentru actul permisiv ",{"$f":"'Date intiale'!C4+'Date intiale'!C5+'Date intiale'!C6+'Date intiale'!C7+'Date intiale'!C8","v":4.25},{"$f":"Tarif!$B$8","v":64.5},{"$f":"E3*F3","v":274.125},0,{"$f":"G3+H3","v":274.125},{"$f":"'Date intiale'!$C$20-J4","v":900},{"$f":"'Date intiale'!$C$22","v":1},{"$f":"J3*K3","v":900},{"$f":"I3*L3/1000","v":246.71250000000001}]
[null,null,null,"aplică pentru prima dată pentru actul permisiv  ",{"$f":"'Date intiale'!C3+'Date intiale'!C5+'Date intiale'!C6+'Date intiale'!C7+'Date intiale'!C8","v":7.25},{"$f":"Tarif!$B$8","v":64.5},467.625,0,467.625,{"$f":"'Date intiale'!$C$20*'Date intiale'!$C$21","v":100},{"$f":"'Date intiale'!$C$22","v":1},100,46.762500000000003]
[null,null,null,null,null,{"$f":"Tarif!$B$8","v":64.5},0,null,0,null,null,0,0]
[null,null,null,null,null,{"$f":"Tarif!$B$8","v":64.5},0,null,0,null,null,0,0]
[null,null,null,null,null,{"$f":"Tarif!$B$8","v":64.5},0,null,0,null,null,0,0]
[null,null,null,null,null,{"$f":"Tarif!$B$8","v":64.5},0,null,0,null,null,0,0]
[null,null,null,"TOTAL nou",null,null,null,null,null,null,null,null,{"$f":"SUM(M3:M8)","v":293.47500000000002}]
[null,null,null,{"$f":"'Cost actual'!D9:L9","v":"TOTAL actual"},null,null,null,null,null,null,null,null,{"$f":"'Cost actual'!$M$9","v":293.47500000000002}]
[null,null,null,"Schimbare:\"-\" reducere,\"+\" majorare, mii lei",null,null,null,null,null,null,null,null,{"$f":"M9-M10","v":0}]
[null,null,null,"Schimbare:\"-\" reducere,\"+\" majorare, %",null,null,null,null,null,null,null,null,{"$f":"M11/M10","v":0}]
[]
[null,null,null,"TOTAL taxă de eliberare a actului permisiv, nou, mii lei",null,null,null,null,null,null,null,null,{"$f":"'Date intiale'!$C$20*'Date intiale'!$C$24/1000","v":100}]
[null,null,null,"TOTAL taxă de eliberare a actului permisiv, actual, mii lei",null,null,null,null,null,null,null,null,{"$f":"'Cost actual'!$M$11","v":100}]
[null,null,null,"Schimbare:\"-\" reducere,\"+\" majorare, mii lei",null,null,null,null,null,null,null,null,{"$f":"M14-M15","v":0}]
[null,null,null,"Schimbare:\"-\" reducere,\"+\" majorare, %",null,null,null,null,null,null,null,null,{"$f":"M16/M15","v":0}]
[]
[null,null,null,"Timp de așteptare de la depunerea documentelor solicitate până la ridicarea actului permisiv, nou, mii zile",null,null,null,null,null,null,null,null,{"$f":"'Date intiale'!$C$20*'Date intiale'!$C$25/1000","v":5}]
[null,null,null,"Timp de așteptare de la depunerea documentelor solicitate până la ridicarea actului permisiv, actual, mii zile",null,null,null,null,null,null,null,null,{"$f":"'Cost actual'!$M$12","v":5}]
[null,null,null,"Schimbare:\"-\" reducere,\"+\" majorare, mii zile",null,null,null,null,null,null,null,null,{"$f":"M19-M20","v":0}]
[null,null,null,"Schimbare:\"-\" reducere,\"+\" majorare, %",null,null,null,null,null,null,null,null,{"$f":"M21/M20","v":0}]

{"sheet":"Tarif","index":3,"n_rows":10,"n_cols":3,"rows_kept":10,"cut":false,"hidden":false,"merged":[]}
["Denumirea","Valori","Comentarii"]
["Câștigul salarial mediu brut lunar în sectorul real în 2019, lei",7420.4]
["Cota de majorare a câștigului salarial, %",0]
["Contribuții de asigurări sociale de stat obligatorii achitate de către angajator din sectorul privat, %",0.18]
["Primele de asigurare obligatorie de asistență medicală achitate de către angajator, %",4.4999999999999998E-2]
["Cota de cheltuieli generale luată în calcul, %",0.2]
["Ore în mediu pe lună pentru program complet de lucru (HG nr.165/2010 cu privire la cuantumul minim garantat al salariului în sectorul real)",169]
["Tarif, lei/oră",{"$f":"ROUND((((B2*(1+B3)*(1+B4+B5))*(1+B6))/B7),1)","v":64.5}]
[]
["Prețul resurselor externe achitat specialistului extern pentru obținerea actului permisiv de export, lei"]